[Event "Late-Titled-Tuesday-Blitz-February-13-2024"]
[Site "Chess.com"]
[Date "2024.02.13"]
[Round "7"]
[White "viniciusrego"]
[Black "MyDream003"]
[Result "0-1"]
[WhiteElo "2390"]
[BlackElo "2754"]
[TimeControl "180+1"]
[EndTime "15:19:12 PST"]
[Termination "MyDream003 won by resignation"]

1. Nf3 {[%clk 0:03:00.9]} 1... Nf6 {[%clk 0:02:59.3]} 2. c4 {[%clk 0:03:00.9]}
2... c5 {[%clk 0:02:57.1]} 3. d4 {[%clk 0:02:57.8]} 3... cxd4 {[%clk 0:02:57.6]}
4. Nxd4 {[%clk 0:02:58.7]} 4... Nc6 {[%clk 0:02:55.7]} 5. g3 {[%clk 0:02:59]}
5... e6 {[%clk 0:02:53.2]} 6. Bg2 {[%clk 0:02:58.7]} 6... Qb6 {[%clk 0:02:53.9]}
7. Nb5 {[%clk 0:02:51]} 7... Ne5 {[%clk 0:02:53.6]} 8. Be3 {[%clk 0:02:40.1]}
8... Qa5+ {[%clk 0:02:43.3]} 9. Bd2 {[%clk 0:02:40.3]} 9... Bb4 {[%clk
0:02:34.5]} 10. Nd6+ {[%clk 0:02:37.9]} 10... Ke7 {[%clk 0:02:33.2]} 11. Nxc8+
{[%clk 0:02:13.2]} 11... Raxc8 {[%clk 0:02:34.1]} 12. b3 {[%clk 0:02:13.6]}
12... b5 {[%clk 0:02:24]} 13. cxb5 {[%clk 0:02:08.3]} 13... Qxb5 {[%clk
0:02:07.6]} 14. O-O {[%clk 0:02:08]} 14... Rc7 {[%clk 0:01:57.8]} 15. Bf4 {[%clk
0:01:59.7]} 15... Rhc8 {[%clk 0:01:46.1]} 16. a3 {[%clk 0:02:00]} 16... Bd6
{[%clk 0:01:45.8]} 17. Nd2 {[%clk 0:01:57.5]} 17... Kf8 {[%clk 0:01:15.8]} 18.
Nc4 {[%clk 0:01:32.6]} 18... Nf3+ {[%clk 0:00:22]} 19. Bxf3 {[%clk 0:01:23.6]}
19... Bxf4 {[%clk 0:00:22.5]} 20. gxf4 {[%clk 0:01:24.5]} 20... Ne8 {[%clk
0:00:13.6]} 21. e3 {[%clk 0:01:19.8]} 21... Kg8 {[%clk 0:00:13.3]} 22. Kh1
{[%clk 0:01:19.3]} 22... g6 {[%clk 0:00:13.1]} 23. Rg1 {[%clk 0:01:18.8]} 23...
a5 {[%clk 0:00:13.5]} 24. a4 {[%clk 0:01:11.6]} 24... Qb4 {[%clk 0:00:13.5]} 25.
Rb1 {[%clk 0:01:09.4]} 25... d5 {[%clk 0:00:13.7]} 26. Ne5 {[%clk 0:01:08.4]}
26... Rc2 {[%clk 0:00:13.7]} 27. Bg2 {[%clk 0:00:58]} 27... Nf6 {[%clk
0:00:13.5]} 28. f3 {[%clk 0:00:48.6]} 28... Rd2 {[%clk 0:00:13.1]} 29. Qe1
{[%clk 0:00:47.9]} 29... Rcc2 {[%clk 0:00:13.2]} 30. Rd1 {[%clk 0:00:43]} 30...
Rxd1 {[%clk 0:00:13.3]} 31. Qxd1 {[%clk 0:00:41.6]} 31... Qxb3 {[%clk
0:00:13.8]} 32. Nc6 {[%clk 0:00:31.1]} 32... Qa2 {[%clk 0:00:08.7]} 33. Nd4
{[%clk 0:00:22.1]} 33... Rd2 {[%clk 0:00:07.1]} 34. Qb3 {[%clk 0:00:21.7]} 34...
Nd7 {[%clk 0:00:04.2]} 35. Qxa2 {[%clk 0:00:21.3]} 35... Rxa2 {[%clk 0:00:05.1]}
36. Rc1 {[%clk 0:00:20.5]} 36... Rxa4 {[%clk 0:00:04.9]} 37. Bf1 {[%clk
0:00:20.1]} 37... Nb6 {[%clk 0:00:04.7]} 38. Rc6 {[%clk 0:00:19.8]} 38... Rb4
{[%clk 0:00:05.2]} 39. Rc7 {[%clk 0:00:18.6]} 39... a4 {[%clk 0:00:05]} 40. Ra7
{[%clk 0:00:19.2]} 40... Rb1 {[%clk 0:00:04.1]} 41. Kg1 {[%clk 0:00:19.6]} 41...
Rb2 {[%clk 0:00:04.6]} 42. Be2 {[%clk 0:00:19.4]} 42... Rb1+ {[%clk 0:00:03.1]}
43. Kf2 {[%clk 0:00:19.8]} 43... Rb2 {[%clk 0:00:04]} 44. Ke1 {[%clk 0:00:20.1]}
44... h5 {[%clk 0:00:04.5]} 45. h4 {[%clk 0:00:20.2]} 45... Rb1+ {[%clk
0:00:04.8]} 46. Kf2 {[%clk 0:00:20.4]} 46... Rb2 {[%clk 0:00:05.2]} 47. Kf1
{[%clk 0:00:20.5]} 47... Rb1+ {[%clk 0:00:05.6]} 48. Kg2 {[%clk 0:00:20.5]}
48... Rb2 {[%clk 0:00:06.5]} 49. Ra6 {[%clk 0:00:19.6]} 49... Kf8 {[%clk
0:00:06.7]} 50. Kf1 {[%clk 0:00:19.4]} 50... Ke7 {[%clk 0:00:07]} 51. Nc6+
{[%clk 0:00:19.8]} 51... Kd6 {[%clk 0:00:06.9]} 52. Ne5 {[%clk 0:00:20.4]} 52...
f6 {[%clk 0:00:06.3]} 53. Nxg6 {[%clk 0:00:20.4]} 53... Kc5 {[%clk 0:00:06.9]}
54. Ne7 {[%clk 0:00:20.5]} 54... Rb1+ {[%clk 0:00:05.2]} 55. Kf2 {[%clk
0:00:20.6]} 55... Rb2 {[%clk 0:00:06.1]} 56. Ra7 {[%clk 0:00:19.7]} 56... Ra2
{[%clk 0:00:06.2]} 57. Ng8 {[%clk 0:00:18.8]} 57... f5 {[%clk 0:00:05.9]} 58.
Nf6 {[%clk 0:00:19.1]} 58... a3 {[%clk 0:00:04.8]} 59. Nxh5 {[%clk 0:00:19.4]}
59... Nc4 {[%clk 0:00:05.2]} 60. Rc7+ {[%clk 0:00:16.7]} 60... Kb6 {[%clk
0:00:04.8]} 61. Rc8 {[%clk 0:00:17]} 61... Rc2 {[%clk 0:00:04.4]} 62. Ra8 {[%clk
0:00:17.2]} 62... a2 {[%clk 0:00:04.1]} 63. Nf6 {[%clk 0:00:17.9]} 63... Na5
{[%clk 0:00:03.9]} 64. Rb8+ {[%clk 0:00:17.6]} 64... Ka7 {[%clk 0:00:03.5]} 65.
Rg8 {[%clk 0:00:15.4]} 65... a1=Q {[%clk 0:00:03.4]} 66. h5 {[%clk 0:00:16.3]}
66... Qxf6 {[%clk 0:00:03.2]} 67. Rg6 {[%clk 0:00:15.9]} 67... Qb2 {[%clk
0:00:03.7]} 68. h6 {[%clk 0:00:15.5]} 68... Rxe2+ {[%clk 0:00:04.6]} 69. Kg3
{[%clk 0:00:16.4]} 69... Rg2+ {[%clk 0:00:04.8]} 70. Kh4 {[%clk 0:00:17.1]}
70... Rxg6 {[%clk 0:00:05.7]} 0-1

[Event "Late-Titled-Tuesday-Blitz-February-13-2024"]
[Site "Chess.com"]
[Date "2024.02.13"]
[Round "7"]
[White "tteshan"]
[Black "zajka-molotok"]
[Result "0-1"]
[WhiteElo "2624"]
[BlackElo "2510"]
[TimeControl "180+1"]
[EndTime "15:19:13 PST"]
[Termination "zajka-molotok won on time"]

1. Nf3 {[%clk 0:03:00.9]} 1... d5 {[%clk 0:02:58.1]} 2. g3 {[%clk 0:02:59.9]}
2... Nc6 {[%clk 0:02:56.9]} 3. d4 {[%clk 0:02:59.4]} 3... Bf5 {[%clk 0:02:56.5]}
4. Bg2 {[%clk 0:02:59.8]} 4... e6 {[%clk 0:02:53.8]} 5. O-O {[%clk 0:02:59.5]}
5... Nf6 {[%clk 0:02:53.2]} 6. h3 {[%clk 0:02:34.5]} 6... h6 {[%clk 0:02:51.8]}
7. Bf4 {[%clk 0:02:33.7]} 7... Be7 {[%clk 0:02:49.4]} 8. Ne5 {[%clk 0:02:31.1]}
8... Nxe5 {[%clk 0:02:46.6]} 9. Bxe5 {[%clk 0:02:32]} 9... O-O {[%clk
0:02:45.8]} 10. c4 {[%clk 0:02:32.5]} 10... c6 {[%clk 0:02:45]} 11. Qb3 {[%clk
0:02:29.6]} 11... Qb6 {[%clk 0:02:43.7]} 12. c5 {[%clk 0:02:26.6]} 12... Qa6
{[%clk 0:02:40]} 13. Re1 {[%clk 0:02:23.3]} 13... b6 {[%clk 0:02:39.1]} 14. cxb6
{[%clk 0:02:21.6]} 14... axb6 {[%clk 0:02:40]} 15. Nc3 {[%clk 0:02:20.5]} 15...
c5 {[%clk 0:02:34.4]} 16. a4 {[%clk 0:02:10.2]} 16... c4 {[%clk 0:02:31.3]} 17.
Qb5 {[%clk 0:01:40.9]} 17... Qxb5 {[%clk 0:02:24.2]} 18. axb5 {[%clk 0:01:41.8]}
18... Bb4 {[%clk 0:02:09.4]} 19. f3 {[%clk 0:01:33.7]} 19... Bh7 {[%clk
0:01:55.3]} 20. e4 {[%clk 0:01:29]} 20... dxe4 {[%clk 0:01:42.8]} 21. fxe4
{[%clk 0:01:08.6]} 21... Rxa1 {[%clk 0:01:29.6]} 22. Rxa1 {[%clk 0:01:09.5]}
22... Bxc3 {[%clk 0:01:30.2]} 23. bxc3 {[%clk 0:01:09.7]} 23... Bxe4 {[%clk
0:01:20.3]} 24. Bxf6 {[%clk 0:01:09]} 24... Bxg2 {[%clk 0:01:19.5]} 25. Kxg2
{[%clk 0:01:07.9]} 25... gxf6 {[%clk 0:01:18.9]} 26. Ra7 {[%clk 0:01:03.5]}
26... Rd8 {[%clk 0:01:14.7]} 27. Rb7 {[%clk 0:00:45]} 27... Rd6 {[%clk
0:01:14.3]} 28. Kf3 {[%clk 0:00:44]} 28... Kg7 {[%clk 0:01:11.4]} 29. Ke4 {[%clk
0:00:44.3]} 29... f5+ {[%clk 0:01:09.8]} 30. Kf4 {[%clk 0:00:38.4]} 30... Kg6
{[%clk 0:01:08.6]} 31. Rb8 {[%clk 0:00:36.4]} 31... f6 {[%clk 0:01:03.5]} 32.
Rb7 {[%clk 0:00:30.9]} 32... h5 {[%clk 0:00:42.4]} 33. h4 {[%clk 0:00:30.8]}
33... Kh6 {[%clk 0:00:42]} 34. Rc7 {[%clk 0:00:26.4]} 34... Rd5 {[%clk
0:00:39.7]} 35. Rxc4 {[%clk 0:00:21.3]} 35... Rxb5 {[%clk 0:00:37.7]} 36. Rc6
{[%clk 0:00:20.8]} 36... Kg6 {[%clk 0:00:30.7]} 37. Rxe6 {[%clk 0:00:20.3]}
37... Rb3 {[%clk 0:00:30.9]} 38. Rc6 {[%clk 0:00:18.6]} 38... Rb1 {[%clk
0:00:27.8]} 39. d5 {[%clk 0:00:18.8]} 39... Rd1 {[%clk 0:00:24.8]} 40. c4 {[%clk
0:00:18.7]} 40... b5 {[%clk 0:00:24.6]} 41. cxb5 {[%clk 0:00:16.7]} 41... Rxd5
{[%clk 0:00:24]} 42. b6 {[%clk 0:00:17.6]} 42... Rb5 {[%clk 0:00:24.1]} 43. Ke3
{[%clk 0:00:17.3]} 43... Rb3+ {[%clk 0:00:23.1]} 44. Kf4 {[%clk 0:00:17.1]}
44... Rb4+ {[%clk 0:00:22]} 45. Kf3 {[%clk 0:00:17.2]} 45... Rb3+ {[%clk
0:00:19.4]} 46. Kf2 {[%clk 0:00:17.5]} 46... f4 {[%clk 0:00:18.1]} 47. gxf4
{[%clk 0:00:14.7]} 47... Kf5 {[%clk 0:00:18.5]} 48. Ke2 {[%clk 0:00:12.5]} 48...
Kxf4 {[%clk 0:00:18]} 49. Rxf6+ {[%clk 0:00:12.3]} 49... Kg4 {[%clk 0:00:18]}
50. Kd2 {[%clk 0:00:12.5]} 50... Kxh4 {[%clk 0:00:17.7]} 51. Ke2 {[%clk
0:00:12.6]} 51... Kg3 {[%clk 0:00:16]} 52. Rg6+ {[%clk 0:00:10.5]} 52... Kh3
{[%clk 0:00:15.5]} 53. Kf2 {[%clk 0:00:10.6]} 53... h4 {[%clk 0:00:15.4]} 54.
Kg1 {[%clk 0:00:10.3]} 54... Rb1+ {[%clk 0:00:14.9]} 55. Kf2 {[%clk 0:00:10.6]}
55... Kh2 {[%clk 0:00:15]} 56. Rg2+ {[%clk 0:00:10.3]} 56... Kh1 {[%clk
0:00:14.1]} 57. Rg6 {[%clk 0:00:04.4]} 57... h3 {[%clk 0:00:14.3]} 58. Rh6
{[%clk 0:00:02.5]} 58... h2 {[%clk 0:00:13.7]} 59. Kf3 {[%clk 0:00:01.7]} 59...
Kg1 {[%clk 0:00:12.4]} 60. Rg6+ {[%clk 0:00:02.2]} 60... Kf1 {[%clk 0:00:11.8]}
61. Rh6 {[%clk 0:00:02.2]} 61... Rb3+ {[%clk 0:00:11.6]} 62. Ke4 {[%clk
0:00:01.7]} 62... Kg1 {[%clk 0:00:09.9]} 63. Rg6+ {[%clk 0:00:02.1]} 63... Kf2
{[%clk 0:00:07.7]} 64. Rh6 {[%clk 0:00:02.1]} 64... Kg2 {[%clk 0:00:07.6]} 65.
Rg6+ {[%clk 0:00:02.4]} 65... Rg3 {[%clk 0:00:07.8]} 66. Rxg3+ {[%clk
0:00:02.6]} 66... Kxg3 {[%clk 0:00:08.7]} 67. b7 {[%clk 0:00:01.5]} 67... h1=Q+
{[%clk 0:00:08.9]} 0-1

[Event "Late-Titled-Tuesday-Blitz-February-13-2024"]
[Site "Chess.com"]
[Date "2024.02.13"]
[Round "7"]
[White "TheMagician"]
[Black "ATM622"]
[Result "1/2-1/2"]
[WhiteElo "2228"]
[BlackElo "2478"]
[TimeControl "180+1"]
[EndTime "15:19:16 PST"]
[Termination "Game drawn by stalemate"]

1. d4 {[%clk 0:03:00.9]} 1... Nf6 {[%clk 0:02:56.5]} 2. Nf3 {[%clk 0:03:00.8]}
2... e6 {[%clk 0:02:55.8]} 3. Bg5 {[%clk 0:02:57.2]} 3... d5 {[%clk 0:02:54]} 4.
Nbd2 {[%clk 0:02:56.1]} 4... Be7 {[%clk 0:02:53.7]} 5. Bxf6 {[%clk 0:02:54.9]}
5... Bxf6 {[%clk 0:02:52.9]} 6. c3 {[%clk 0:02:54.7]} 6... Nd7 {[%clk 0:02:51]}
7. e4 {[%clk 0:02:54.7]} 7... dxe4 {[%clk 0:02:49.8]} 8. Nxe4 {[%clk 0:02:54.9]}
8... O-O {[%clk 0:02:50.3]} 9. Bd3 {[%clk 0:02:46.4]} 9... e5 {[%clk 0:02:49.7]}
10. Nxf6+ {[%clk 0:02:37.1]} 10... Qxf6 {[%clk 0:02:48.5]} 11. O-O {[%clk
0:02:32.8]} 11... exd4 {[%clk 0:02:47]} 12. cxd4 {[%clk 0:02:25.6]} 12... h6
{[%clk 0:02:43.2]} 13. b3 {[%clk 0:02:19.2]} 13... c5 {[%clk 0:02:40.8]} 14. Rc1
{[%clk 0:02:12.7]} 14... cxd4 {[%clk 0:02:36.9]} 15. Qe2 {[%clk 0:02:05.4]}
15... Qf4 {[%clk 0:02:15.2]} 16. Rc4 {[%clk 0:01:59]} 16... Nf6 {[%clk
0:01:59.8]} 17. Rxd4 {[%clk 0:01:58.5]} 17... Qc7 {[%clk 0:01:55.7]} 18. Rc4
{[%clk 0:01:57]} 18... Qb6 {[%clk 0:01:50]} 19. Re1 {[%clk 0:01:42.3]} 19... Bg4
{[%clk 0:01:43.4]} 20. Qe3 {[%clk 0:01:22]} 20... Qxe3 {[%clk 0:01:34.9]} 21.
Rxe3 {[%clk 0:01:22]} 21... Rad8 {[%clk 0:01:34.7]} 22. Ne5 {[%clk 0:01:18.2]}
22... Be6 {[%clk 0:01:29.1]} 23. Rc1 {[%clk 0:01:00.1]} 23... Nd5 {[%clk
0:01:28.3]} 24. Ree1 {[%clk 0:00:57.5]} 24... Nb4 {[%clk 0:01:26.5]} 25. Bb1
{[%clk 0:00:57.3]} 25... Rd2 {[%clk 0:01:21.3]} 26. a3 {[%clk 0:00:50.3]} 26...
Na6 {[%clk 0:01:17.5]} 27. b4 {[%clk 0:00:50.2]} 27... Nb8 {[%clk 0:01:06.3]}
28. h3 {[%clk 0:00:48.6]} 28... Nd7 {[%clk 0:00:27.3]} 29. Nf3 {[%clk
0:00:47.3]} 29... Rb2 {[%clk 0:00:22.7]} 30. Be4 {[%clk 0:00:38.4]} 30... b6
{[%clk 0:00:16.2]} 31. Nd4 {[%clk 0:00:38.4]} 31... Ba2 {[%clk 0:00:11.3]} 32.
Rc7 {[%clk 0:00:35.3]} 32... Nf6 {[%clk 0:00:10.7]} 33. Bf3 {[%clk 0:00:32.7]}
33... Rd2 {[%clk 0:00:08]} 34. Nf5 {[%clk 0:00:29.4]} 34... a5 {[%clk
0:00:05.6]} 35. Re2 {[%clk 0:00:20.3]} 35... Rd1+ {[%clk 0:00:05.6]} 36. Kh2
{[%clk 0:00:19.8]} 36... axb4 {[%clk 0:00:05.9]} 37. Rxa2 {[%clk 0:00:19.5]}
37... b3 {[%clk 0:00:03.8]} 38. Rb2 {[%clk 0:00:19.7]} 38... Ra1 {[%clk
0:00:02.4]} 39. Rxb3 {[%clk 0:00:19.6]} 39... Kh7 {[%clk 0:00:02.5]} 40. Rxb6
{[%clk 0:00:18.1]} 40... Rxa3 {[%clk 0:00:02.4]} 41. Rxf6 {[%clk 0:00:14.8]}
41... gxf6 {[%clk 0:00:02.6]} 42. Be4 {[%clk 0:00:15.1]} 42... Kh8 {[%clk
0:00:02.6]} 43. Nxh6 {[%clk 0:00:14.8]} 43... Ra2 {[%clk 0:00:02.8]} 44. f3
{[%clk 0:00:14.8]} 44... Ra3 {[%clk 0:00:01.8]} 45. Nxf7+ {[%clk 0:00:14.8]}
45... Kg7 {[%clk 0:00:02.3]} 46. Ne5+ {[%clk 0:00:14.6]} 46... Kh6 {[%clk
0:00:02.2]} 47. Rh7+ {[%clk 0:00:13.3]} 47... Kg5 {[%clk 0:00:02.3]} 48. h4+
{[%clk 0:00:11.6]} 48... Kf4 {[%clk 0:00:02.5]} 49. Ng6+ {[%clk 0:00:12.3]}
49... Ke3 {[%clk 0:00:03]} 50. Nxf8 {[%clk 0:00:12.5]} 50... Kf2 {[%clk
0:00:03.4]} 51. Rf7 {[%clk 0:00:13.1]} 51... Ra5 {[%clk 0:00:01.4]} 52. Rg7
{[%clk 0:00:13.8]} 52... Rh5 {[%clk 0:00:01.6]} 53. Kh3 {[%clk 0:00:13.9]} 53...
Rh6 {[%clk 0:00:01.7]} 54. Rg4 {[%clk 0:00:13.2]} 54... Rh8 {[%clk 0:00:01.8]}
55. Ng6 {[%clk 0:00:13]} 55... Rc8 {[%clk 0:00:02.2]} 56. Nf4 {[%clk 0:00:13.9]}
56... Rc1 {[%clk 0:00:02.2]} 57. Nd3+ {[%clk 0:00:14.8]} 57... Kg1 {[%clk
0:00:02.5]} 58. Kg3 {[%clk 0:00:15.3]} 58... Rf1 {[%clk 0:00:01.5]} 59. Kf4
{[%clk 0:00:16.2]} 59... Rd1 {[%clk 0:00:01.7]} 60. Bf5 {[%clk 0:00:16.9]} 60...
Kh2 {[%clk 0:00:02.1]} 61. Rg6 {[%clk 0:00:17.3]} 61... Re1 {[%clk 0:00:02.3]}
62. h5 {[%clk 0:00:18.2]} 62... Rh1 {[%clk 0:00:02.4]} 63. h6 {[%clk 0:00:19.1]}
63... Kg1 {[%clk 0:00:03.3]} 64. h7 {[%clk 0:00:20]} 64... Rxh7 {[%clk
0:00:03.6]} 65. Rxf6 {[%clk 0:00:19.9]} 65... Rh4+ {[%clk 0:00:03.9]} 66. Bg4
{[%clk 0:00:19.6]} 66... Kh2 {[%clk 0:00:03.4]} 67. Rf5 {[%clk 0:00:18.4]} 67...
Rh7 {[%clk 0:00:03.1]} 68. Rh5+ {[%clk 0:00:19.3]} 68... Rxh5 {[%clk 0:00:03.4]}
69. Bxh5 {[%clk 0:00:20]} 69... Kg1 {[%clk 0:00:04.3]} 70. Ke3 {[%clk
0:00:20.1]} 70... Kh2 {[%clk 0:00:04.6]} 71. g4 {[%clk 0:00:21]} 71... Kg3
{[%clk 0:00:04.8]} 72. g5 {[%clk 0:00:21.9]} 72... Kh2 {[%clk 0:00:05]} 73. g6
{[%clk 0:00:22.8]} 73... Kg1 {[%clk 0:00:05.5]} 74. g7 {[%clk 0:00:23.7]} 74...
Kf1 {[%clk 0:00:06.1]} 75. g8=Q {[%clk 0:00:24.6]} 1/2-1/2

[Event "Late-Titled-Tuesday-Blitz-February-13-2024"]
[Site "Chess.com"]
[Date "2024.02.13"]
[Round "7"]
[White "Eloist"]
[Black "N_I_Chess"]
[Result "1-0"]
[WhiteElo "2440"]
[BlackElo "2275"]
[TimeControl "180+1"]
[EndTime "15:19:23 PST"]
[Termination "Eloist won on time"]

1. e4 {[%clk 0:02:59.8]} 1... Nf6 {[%clk 0:03:00.2]} 2. e5 {[%clk 0:02:59.4]}
2... Nd5 {[%clk 0:02:54.8]} 3. d4 {[%clk 0:02:59.2]} 3... d6 {[%clk 0:02:50.2]}
4. Nf3 {[%clk 0:02:58.7]} 4... dxe5 {[%clk 0:02:48.4]} 5. Nxe5 {[%clk
0:02:58.3]} 5... c6 {[%clk 0:02:48.8]} 6. Be2 {[%clk 0:02:57.7]} 6... Bf5 {[%clk
0:02:48.4]} 7. O-O {[%clk 0:02:47.3]} 7... Nd7 {[%clk 0:02:46.5]} 8. Nf3 {[%clk
0:02:41.3]} 8... e6 {[%clk 0:02:42.8]} 9. a3 {[%clk 0:02:16.2]} 9... b5 {[%clk
0:02:36.2]} 10. Re1 {[%clk 0:02:04.2]} 10... Bd6 {[%clk 0:02:32.5]} 11. Bf1
{[%clk 0:02:01.1]} 11... Bg4 {[%clk 0:02:30.9]} 12. h3 {[%clk 0:01:58.8]} 12...
Bh5 {[%clk 0:02:30.8]} 13. Nbd2 {[%clk 0:01:57.8]} 13... N7f6 {[%clk 0:02:23.2]}
14. c4 {[%clk 0:01:47.2]} 14... bxc4 {[%clk 0:02:18.7]} 15. Nxc4 {[%clk
0:01:46.8]} 15... Bc7 {[%clk 0:02:19.2]} 16. g4 {[%clk 0:01:38.6]} 16... Bg6
{[%clk 0:02:17.8]} 17. Nfe5 {[%clk 0:01:38.3]} 17... O-O {[%clk 0:02:02.6]} 18.
h4 {[%clk 0:01:28.5]} 18... h5 {[%clk 0:01:07.9]} 19. g5 {[%clk 0:01:12.3]}
19... Ng4 {[%clk 0:00:53.3]} 20. Nxg4 {[%clk 0:00:53.8]} 20... hxg4 {[%clk
0:00:54.2]} 21. Qxg4 {[%clk 0:00:53]} 21... Bf5 {[%clk 0:00:37.5]} 22. Qf3
{[%clk 0:00:46.2]} 22... f6 {[%clk 0:00:36.3]} 23. Bh3 {[%clk 0:00:34.8]} 23...
fxg5 {[%clk 0:00:35.4]} 24. Bxg5 {[%clk 0:00:34]} 24... Qe8 {[%clk 0:00:31.6]}
25. Bxf5 {[%clk 0:00:32.1]} 25... Rxf5 {[%clk 0:00:32.1]} 26. Qxf5 {[%clk
0:00:31.4]} 26... exf5 {[%clk 0:00:32.8]} 27. Rxe8+ {[%clk 0:00:31.1]} 27...
Rxe8 {[%clk 0:00:33.7]} 28. Kf1 {[%clk 0:00:28]} 28... Re4 {[%clk 0:00:33.1]}
29. Rd1 {[%clk 0:00:23.8]} 29... f4 {[%clk 0:00:20.3]} 30. f3 {[%clk 0:00:15.2]}
30... Re6 {[%clk 0:00:18]} 31. Re1 {[%clk 0:00:13.2]} 31... Kf7 {[%clk 0:00:17]}
32. Rxe6 {[%clk 0:00:12.5]} 32... Kxe6 {[%clk 0:00:17.9]} 33. Ke2 {[%clk
0:00:12]} 33... Kf5 {[%clk 0:00:17]} 34. Kd3 {[%clk 0:00:11.9]} 34... a6 {[%clk
0:00:14.2]} 35. b4 {[%clk 0:00:10.8]} 35... g6 {[%clk 0:00:12.8]} 36. Nd2 {[%clk
0:00:10.4]} 36... Bd6 {[%clk 0:00:11.6]} 37. Ne4 {[%clk 0:00:10.3]} 37... Bf8
{[%clk 0:00:09]} 38. Nc3 {[%clk 0:00:07.7]} 38... Ne3 {[%clk 0:00:08.7]} 39. Ne4
{[%clk 0:00:05.6]} 39... Nf1 {[%clk 0:00:08.7]} 40. Nc5 {[%clk 0:00:04.8]} 40...
Nh2 {[%clk 0:00:08]} 41. Ke2 {[%clk 0:00:03.4]} 41... Bd6 {[%clk 0:00:05.9]} 42.
Nxa6 {[%clk 0:00:03.4]} 42... Bf8 {[%clk 0:00:05.4]} 43. Nb8 {[%clk 0:00:03.4]}
43... Bg7 {[%clk 0:00:05.8]} 44. Nxc6 {[%clk 0:00:03.3]} 44... Ke6 {[%clk
0:00:06.7]} 45. b5 {[%clk 0:00:03.7]} 45... Kd6 {[%clk 0:00:07.2]} 46. a4 {[%clk
0:00:04]} 46... Kc7 {[%clk 0:00:08.1]} 47. Kd3 {[%clk 0:00:04.2]} 47... Kb6
{[%clk 0:00:08.9]} 48. Ke4 {[%clk 0:00:04.3]} 48... Nf1 {[%clk 0:00:09.5]} 49.
d5 {[%clk 0:00:04.6]} 49... Nd2+ {[%clk 0:00:09.5]} 50. Kd3 {[%clk 0:00:04.1]}
50... Nb3 {[%clk 0:00:08.7]} 51. Bxf4 {[%clk 0:00:03.5]} 51... Nc5+ {[%clk
0:00:09.3]} 52. Kc4 {[%clk 0:00:03.7]} 52... Nxa4 {[%clk 0:00:09.7]} 53. d6
{[%clk 0:00:04.2]} 53... Nb2+ {[%clk 0:00:06]} 54. Kb3 {[%clk 0:00:03.9]} 54...
Nd3 {[%clk 0:00:05.8]} 55. d7 {[%clk 0:00:04]} 55... Nc5+ {[%clk 0:00:06.1]} 56.
Kc4 {[%clk 0:00:03.6]} 56... Nxd7 {[%clk 0:00:07]} 57. Be3+ {[%clk 0:00:03]}
57... Kc7 {[%clk 0:00:07.3]} 58. Kd5 {[%clk 0:00:03.2]} 58... Nf6+ {[%clk
0:00:06.3]} 59. Ke6 {[%clk 0:00:03.5]} 59... Nh5 {[%clk 0:00:05.7]} 60. Kf7
{[%clk 0:00:03.4]} 60... Bc3 {[%clk 0:00:05.8]} 61. Kxg6 {[%clk 0:00:03.6]}
61... Ng3 {[%clk 0:00:06.7]} 62. Bd4 {[%clk 0:00:03.5]} 62... Bd2 {[%clk
0:00:06.2]} 63. Be5+ {[%clk 0:00:03]} 63... Kb6 {[%clk 0:00:05.9]} 64. Bxg3
{[%clk 0:00:03.9]} 64... Kxb5 {[%clk 0:00:06.8]} 65. Ne5 {[%clk 0:00:03.2]}
65... Kc5 {[%clk 0:00:07.2]} 66. f4 {[%clk 0:00:04]} 66... Kd5 {[%clk
0:00:07.4]} 67. h5 {[%clk 0:00:04.6]} 67... Be1 {[%clk 0:00:01.7]} 68. Bxe1
{[%clk 0:00:04]} 1-0